[Event "2nd Serbia Open Masters 2022"]
[Site "Novi Sad"]
[Date "2022.06.30"]
[Round "3.12"]
[White "Ioannidis, Evgenios"]
[Black "Anuj Shrivatri"]
[Result "1-0"]
[ECO "D38"]
[WhiteElo "2459"]
[BlackElo "2356"]
[Annotator "TA"]
[PlyCount "117"]
[EventDate "2022.06.28"]
[EventType "swiss"]
[EventCountry "SRB"]
[SourceTitle "playchess.com"]
[Source "ChessBase"]
[SourceQuality "1"]
[TimeControl "40/5400+30:900+30"]

{[%evp 9,117,24,8,8,32,31,29,27,31,2,14,12,19,9,21,0,15,15,24,16,26,28,53,46,34,41,57,57,59,59,142,77,89,80,88,80,120,119,120,130,132,101,97,102,138,137,155,176,185,173,158,159,190,156,209,205,239,221,269,201,198,199,187,150,135,121,126,134,133,124,241,241,241,240,233,216,254,146,127,11,145,106,101,120,87,95,183,43,456,454,480,470,487,487,838,838,787,663,992,946,29971,29971,29973,29974,29973,29975,29974,29975,29985,29986]} 1. d4 {[%emt 0:00:05]} Nf6 {[%emt 0:02:58]} 2. c4 {[%emt 0:00:19]} e6 {[%emt 0:00:05]} 3. Nf3 {[%emt 0:00:33]} d5 {[%emt 0:00:07]} 4. Nc3 {[%emt 0:00:28]} Bb4 {[%emt 0:00:07]} 5. cxd5 {[%emt 0:00:41]} exd5 {[%emt 0:00:07]} 6. Bf4 {[%emt 0:00:29] D38: Queen's Gambit Declined: Ragozin Defence (4 Nf3 Bb4).} O-O {[%emt 0:03:19] 6...Ne4 is the hot move.} 7. e3 {[%emt 0:00:27]} Bf5 {[%emt 0:00:10]} 8. Qb3 {[%emt 0:01:39] White has an edge.} Nc6 {[%emt 0:04:48][%cal Bb8c6,Bc6a5,Ba5c4][%mdl 32]} 9. Nh4 {[%emt 0:02:22]} Be6 {[%emt 0:15:09]} 10. Bd3 {[%emt 0:02:33]} Ne4 {[%emt 0:11:02]} 11. Nf3 {[%emt 0:01:49]} Bf5 {[%emt 0:13:09]} 12. Rd1 {[%emt 0:00:58]} Bxc3+ {[%emt 0:09:36]} 13. bxc3 {[%emt 0:00:10]} Na5 {[%emt 0:00:12] [#] Pair of Knights!} 14. Qc2 $146 {[%emt 0:07:29]} ({Predecessor:} 14. Qb4 c6 15. a4 a6 16. Ra1 b5 17. axb5 axb5 18. O-O Nc4 19. Ne5 Nxe5 20. Bxe5 {½-½ (46) Navara,D (2682)-Sunilduth Lyna,N (2662) Prague 2022}) 14... Qe7 {[%emt 0:02:11]} 15. Nd2 {[%emt 0:05:31]} Nc4 {[%emt 0:06:37]} 16. Nxe4 {[%emt 0:07:00]} (16. Nxc4 dxc4 17. Bxe4 (17. Bxc4 Ng3 $17) 17... Bxe4 $15) (16. Bxe4 {keeps more tension.} Bxe4 17. Nxe4 dxe4 18. Qb3) 16... Bxe4 {[%emt 0:00:06]} 17. Bxe4 {[%emt 0:00:10]} Qxe4 {[%emt 0:07:31]} 18. Qxe4 {[%emt 0:00:47]} dxe4 {[%emt 0:00:05]} 19. Rb1 {[%emt 0:06:08]} Nd6 {[%emt 0:09:18]} ({Better is} 19... b6 $14) 20. Ke2 {[%emt 0:00:57]} (20. Bxd6 $142 cxd6 21. Rxb7) 20... b6 $16 {[%emt 0:00:12]} 21. c4 {[%emt 0:02:23]} Rfc8 {[%emt 0:00:06]} 22. Rhc1 {[%emt 0:02:43]} Nf5 {[%emt 0:04:40]} 23. Rb5 {[%emt 0:05:49]} Nd6 {[%emt 0:02:37]} 24. Rd5 {[%emt 0:06:54]} Ne8 {[%emt 0:00:25]} 25. Rd7 {[%emt 0:05:02]} Kf8 {[%emt 0:01:43]} 26. c5 {[%emt 0:00:27]} c6 {[%emt 0:01:02]} 27. Be5 {[%emt 0:02:28]} b5 {[%emt 0:00:47]} 28. f3 $36 {[%emt 0:10:30][%mdl 2048] Black is under strong pressure.} exf3+ {[%emt 0:00:07]} 29. Kxf3 {[%emt 0:00:05]} Rd8 {[%emt 0:00:52]} 30. Rb7 {[%emt 0:00:19] 0x0.001b69f49a2ddp-1022s more active pieces. The black rooks are badly placed.} f6 {[%emt 0:00:50]} 31. Bg3 {[%emt 0:01:22]} Kg8 {[%emt 0:00:25]} (31... a5 $16 32. Rd1 h6) 32. a4 $18 {[%emt 0:01:34]} a6 {[%emt 0:06:07]} 33. Ra1 {[%emt 0:00:23]} Rdc8 {[%emt 0:00:00]} 34. Rb6 {[%emt 0:00:34]} bxa4 {[%emt 0:00:00]} 35. Rxa4 {[%emt 0:00:06]} a5 {[%emt 0:00:00]} 36. Be1 {[%emt 0:01:25]} f5 {[%emt 0:00:00]} 37. Rxa5 {[%emt 0:07:57]} Rxa5 {[%emt 0:00:00]} 38. Bxa5 $16 {[%emt 0:00:02][%mdl 4096] Endgame KRB-KRN} Nf6 {[%emt 0:00:00]} 39. Be1 {[%emt 0:02:21] Strongly threatening Bg3.} Nd5 {[%emt 0:00:00] [#]} (39... g5 $16 {was worth a try.} 40. Bg3 Ne4) 40. Bg3 $1 $18 {[%emt 0:00:00]} Re8 {[%emt 0:00:00]} 41. Rxc6 {[%emt 0:03:00]} Rxe3+ {[%emt 0:03:51]} 42. Kf2 {[%emt 0:00:03]} Rc3 {[%emt 0:02:02]} 43. Be5 {[%emt 0:01:09]} (43. Rd6 $18 Nf6 44. Ke2) 43... Rc2+ $16 {[%emt 0:00:32]} 44. Ke1 {[%emt 0:03:23]} (44. Kg3 $16) 44... Ne3 {[%emt 0:04:43]} (44... g5 $11 {keeps the balance.}) 45. Bf4 $1 {[%emt 0:03:08]} Nxg2+ {[%emt 0:01:22]} 46. Kd1 {[%emt 0:00:05]} Rc4 {[%emt 0:03:19]} 47. Be5 {[%emt 0:00:03] Hoping for Rc7.} f4 {[%emt 0:01:29]} (47... Ne3+ $16 48. Kd2 Ng4) 48. Rc7 {[%emt 0:03:47]} ({White should play} 48. Ke2 $18) 48... Ne3+ $2 {[%emt 0:03:06][%mdl 8192] Loses the game.} (48... f3 $1 $14 49. Rxg7+ Kf8) 49. Ke2 $18 {[%emt 0:01:42]} Nf5 {[%emt 0:00:07]} 50. c6 {[%emt 0:01:25]} Kf8 {[%emt 0:00:50]} 51. Rc8+ {[%emt 0:03:39]} (51. Kd3 f3 $1 52. Rb7 (52. Kxc4 f2 $15) 52... Rxc6 $11) 51... Kf7 {[%emt 0:00:10] [#]} (51... Ke7 $142 52. c7 (52. Kd3 f3 $11) 52... Nd6) 52. c7 $1 {[%emt 0:00:39]} ({Stronger than} 52. Kd3 {[#]} f3 $1 53. Rb8 (53. Kxc4 $2 {perishes.} f2 $19) 53... Rxc6 $11) 52... Ne7 {[%emt 0:00:30]} 53. Rd8 {[%emt 0:00:25]} Ke6 {[%emt 0:00:27]} 54. Bxf4 {[%emt 0:00:40]} g5 {[%emt 0:00:57]} 55. Kd3 {[%emt 0:01:18] White mates.} Rc6 {[%emt 0:00:40]} 56. d5+ {[%emt 0:00:57]} Nxd5 {[%emt 0:00:07] [#]} 57. Rd6+ $1 {[%emt 0:00:04][%mdl 512]} Rxd6 {[%emt 0:00:18]} 58. c8=Q+ {[%emt 0:00:05]} Rd7 {[%emt 0:00:08]} 59. Qc6+ {[%emt 0:00:04] Weighted Error Value: White=0.17 (very precise) /Black=0.47} 1-0

[Event "2nd Serbia Open Masters 2022"]
[Site "Novi Sad"]
[Date "2022.06.30"]
[Round "3.13"]
[White "Shyaamnikhil P"]
[Black "Kushagra Mohan"]
[Result "1/2-1/2"]
[ECO "B15"]
[WhiteElo "2443"]
[BlackElo "2343"]
[Annotator "TA"]
[PlyCount "71"]
[EventDate "2022.06.28"]
[EventType "swiss"]
[EventCountry "SRB"]
[SourceTitle "playchess.com"]
[Source "ChessBase"]
[SourceQuality "1"]
[TimeControl "40/5400+30:900+30"]

{[%evp 15,71,33,31,11,25,18,16,16,26,-4,20,-11,-12,-17,-17,-13,-17,-20,12,11,20,12,52,56,52,9,36,-5,-5,-18,51,34,29,18,17,16,18,8,10,0,0,0,8,8,8,8,26,18,27,27,34,34,34,0,34,0,34,0]} 1. e4 {[%emt 0:01:55]} c6 {[%emt 0:00:37]} 2. d4 {[%emt 0:02:10]} d5 {[%emt 0:00:07]} 3. Nc3 {[%emt 0:02:44]} dxe4 {[%emt 0:00:07]} 4. Nxe4 {[%emt 0:00:05]} Nf6 {[%emt 0:00:03]} 5. Nxf6+ {[%emt 0:00:07]} exf6 {[%emt 0:00:02]} 6. c3 {[%emt 0:00:25]} Bd6 {[%emt 0:00:03]} 7. Bd3 {[%emt 0:00:08]} O-O {[%emt 0:00:03]} 8. Ne2 {[%emt 0:00:08][%cal Bg1e2,Be2g3,Bg3f5][%mdl 32]} Re8 {[%emt 0:00:02]} 9. O-O {[%emt 0:00:28] B15: Caro-Kann: 3 Nc3: 3...g6 and 3...dxe4 4 Nxe4 Nf6 5 Nxf6+ exf6.} Nd7 {[%emt 0:02:25]} 10. Ng3 {[%emt 0:04:35]} Nf8 {[%emt 0:02:40]} 11. Nf5 {[%emt 0:10:07] The position is equal.} Bc7 {[%emt 0:02:49]} 12. Qf3 {[%emt 0:05:53] [#]} Be6 $146 {[%emt 0:14:16]} ({Predecessor:} 12... g6 13. Nh6+ Kg7 14. Ng4 f5 15. Bh6+ Kg8 16. Ne3 Qh4 17. Qh3 Qxh3 18. gxh3 Ne6 {0-1 (49) Jiang,B (1954)-Vazquez,G (2527) Chess.com INT 2020}) 13. h4 {[%emt 0:21:16]} g6 {[%emt 0:07:02]} 14. Nh6+ {[%emt 0:02:47]} Kg7 {[%emt 0:00:33]} 15. Ng4 {[%emt 0:02:42]} Bxg4 {[%emt 0:01:11]} 16. Qxg4 {[%emt 0:00:07]} h5 {[%emt 0:00:43]} 17. Qf3 {[%emt 0:00:52]} Qd6 {[%emt 0:00:44][%csl Gc7][%cal Rd6h2] [#]} 18. g3 {[%emt 0:00:33]} Ne6 {[%emt 0:00:11]} 19. Bc4 {[%emt 0:02:34]} Rad8 {[%emt 0:02:14]} 20. Bd2 {[%emt 0:06:13]} b5 {[%emt 0:04:29]} 21. Bb3 {[%emt 0:00:33]} c5 {[%emt 0:07:23]} 22. Bxe6 {[%emt 0:09:13]} fxe6 {[%emt 0:00:43]} (22... Rxe6 $11 23. Bf4 Qb6) 23. Be3 {[%emt 0:06:30]} (23. a4 {looks sharper.} bxa4 24. Rxa4 cxd4 25. Rxa7 dxc3 26. Bxc3 Rf8 27. Rfa1) 23... c4 {[%emt 0:03:27]} 24. Qb7 {[%emt 0:01:27]} (24. a4 {is interesting.} b4 25. cxb4 Qxb4 26. Rfc1) 24... Qb6 {[%emt 0:03:22]} 25. Qxb6 {[%emt 0:00:26]} (25. Qe4 {is more complex.} Rd5 26. a4 a5 27. Rfe1) 25... Bxb6 {[%emt 0:04:25]} 26. a4 {[%emt 0:00:27]} Rd5 {[%emt 0:02:40]} 27. Rfe1 {[%emt 0:02:39]} a5 {[%emt 0:05:21]} 28. Re2 {[%emt 0:07:14]} b4 {[%emt 0:02:42]} 29. Rc1 {[%emt 0:02:27] And now cxb4 would win.} b3 {[%emt 0:02:35]} 30. Bf4 {[%emt 0:00:35]} Kf7 {[%emt 0:05:56]} 31. Rce1 {[%emt 0:00:12]} Re7 {[%emt 0:01:52]} 32. Kg2 {[%emt 0:00:11]} Re8 {[%emt 0:00:56]} 33. Re4 {[%emt 0:02:24]} Bd8 {[%emt 0:02:19]} 34. R4e2 {[%emt 0:00:26]} Re7 {[%emt 0:00:32]} 35. Re4 {[%emt 0:00:10]} Re8 {[%emt 0:00:05]} 36. R4e2 {[%emt 0:00:04] Weighted Error Value: White=0.10 (very precise) /Black=0.12 (very precise)} 1/2-1/2

[Event "2nd Serbia Open Masters 2022"]
[Site "Novi Sad"]
[Date "2022.06.30"]
[Round "3.14"]
[White "Agmanov, Zhandos"]
[Black "Chitlange Sakshi"]
[Result "1/2-1/2"]
[ECO "B12"]
[WhiteElo "2420"]
[BlackElo "2216"]
[Annotator "TA"]
[PlyCount "142"]
[EventDate "2022.06.28"]
[EventType "swiss"]
[EventCountry "SRB"]
[SourceTitle "playchess.com"]
[Source "ChessBase"]
[SourceQuality "1"]
[TimeControl "40/5400+30:900+30"]

{[%evp 11,142,20,39,29,22,30,18,0,15,0,13,-74,-50,-67,-65,-83,-57,-66,-65,-51,-63,-59,-62,-66,-57,-74,-70,-72,-25,-38,-16,-28,-29,-24,-33,-37,-29,-30,-20,-25,-25,-121,-118,-128,-106,-170,-187,-178,0,0,0,0,0,0,13,-47,-34,-33,-33,-38,-31,-83,-74,-95,-98,-121,-100,-148,-166,-148,-143,-143,-141,-167,-166,-358,-294,-340,-346,-366,-370,-369,-325,-316,-296,-327,-316,-316,-317,-450,-453,-449,-427,-412,-412,-510,-493,-435,-402,-399,-8,-8,0,0,0,0,0,0,0,0,0,0,0,0,0,0,0,0,0,0,0,0,0,0,0,-8,-8,-8,-8,-8,-8,-8,-8]} 1. e4 {[%emt 0:00:12]} c6 {[%emt 0:00:11]} 2. d4 {[%emt 0:00:48]} d5 {[%emt 0:00:06]} 3. e5 {[%emt 0:00:05]} Bf5 {[%emt 0:00:17]} 4. Nf3 {[%emt 0:01:20]} e6 {[%emt 0:00:18]} 5. Be2 {[%emt 0:00:03]} Nd7 {[%emt 0:00:36]} 6. O-O {[%emt 0:00:30]} h6 {[%emt 0:00:17]} 7. a4 {[%emt 0:01:39] 7.c3 is setting a new trend. B12: Caro-Kann: Advance Variation.} a6 {[%emt 0:01:51]} 8. a5 {[%emt 0:02:42]} g5 {[%emt 0:00:36]} 9. Ne1 {[%emt 0:01:44]} c5 {[%emt 0:02:54]} 10. c3 {[%emt 0:02:01]} Ne7 {[%emt 0:03:29] [#]} 11. dxc5 $146 {[%emt 0:42:57]} (11. Be3 $11) ({Predecessor:} 11. Bd3 Qc7 12. f4 g4 13. dxc5 Nxc5 14. Be2 h5 15. Be3 Bxb1 16. Rxb1 Nf5 17. Bd4 {0-1 (44) Karjakin,S (2775)-Kamsky,G (2762) Beijing 2012}) 11... Nxc5 {[%emt 0:03:14]} 12. Nf3 {[%emt 0:06:35]} Bg7 {[%emt 0:06:40]} 13. Re1 {[%emt 0:05:11]} Qc7 {[%emt 0:04:05]} 14. h3 {[%emt 0:04:04]} O-O {[%emt 0:02:31]} (14... Bxe5 $2 15. Nxe5 f6 16. Nd3 $18) 15. Be3 {[%emt 0:03:23]} Nd7 {[%emt 0:03:58][%cal Bc5d7,Bd7e5,Be5f3][%mdl 32]} 16. Nbd2 {[%emt 0:01:08][%cal Bb1d2,Bd2b3,Bb3c5][%mdl 32]} Nxe5 {[%emt 0:03:15]} 17. Bb6 {[%emt 0:00:14]} Nxf3+ {[%emt 0:03:58]} 18. Bxf3 {[%emt 0:00:47]} Qd7 {[%emt 0:10:38]} 19. Nb3 {[%emt 0:00:23]} Nc8 {[%emt 0:07:35]} (19... Rac8 $17) 20. Bd4 $11 {[%emt 0:03:19]} Nd6 {[%emt 0:04:28]} 21. Nc5 {[%emt 0:02:07]} Qc7 {[%emt 0:03:08][%cal Oe6e5]} 22. Bxg7 {[%emt 0:00:55]} Kxg7 {[%emt 0:00:03]} 23. Qd4+ {[%emt 0:00:18]} Kh7 {[%emt 0:01:19]} 24. b4 {[%emt 0:00:48]} Rad8 {[%emt 0:04:11]} 25. Rad1 {[%emt 0:00:59]} Rg8 {[%emt 0:02:31]} 26. Qe5 {[%emt 0:00:45] [#]} (26. Be2 $11) 26... g4 $1 $17 {[%emt 0:03:50]} 27. hxg4 {[%emt 0:06:10]} Bxg4 {[%emt 0:00:01]} 28. Be4+ {[%emt 0:00:31]} dxe4 $19 {[%emt 0:10:41]} 29. Nxe4 {[%emt 0:00:01]} Nb5 $2 {[%emt 0:10:03]} (29... Bxd1 $19 30. Nf6+ Kg6) 30. Nf6+ $11 {[%emt 0:00:35]} Kg6 $1 {[%emt 0:01:40] Threatens to win with ...Qxe5.} 31. Qxc7 {[%emt 0:02:22] The board is on fire.} Nxc7 {[%emt 0:00:10][%cal Bb5c7,Bc7d5,Bd5c3][%mdl 32]} 32. Nxg4 {[%emt 0:00:05]} Nd5 {[%emt 0:02:06]} 33. Rd4 {[%emt 0:03:14]} (33. Rd3 $11) 33... Nxc3 $15 {[%emt 0:02:15]} 34. Ne5+ {[%emt 0:00:53]} Kg7 {[%emt 0:00:09]} 35. Rf4 {[%emt 0:02:48]} f6 {[%emt 0:01:02]} 36. Rg4+ {[%emt 0:00:55] [#]} (36. Rf3 $15) 36... Kf8 $1 $17 {[%emt 0:00:28]} 37. Rxg8+ {[%emt 0:00:51]} Kxg8 {[%emt 0:00:01][%mdl 4096] Endgame KRN-KRN} 38. Ng4 {[%emt 0:00:01]} Rd4 {[%emt 0:01:57]} 39. f3 {[%emt 0:00:02]} ({White should play} 39. Nxf6+ Kf7 40. Re3) 39... Kf7 {[%emt 0:01:21]} ({Not} 39... Rxb4 40. Rxe6 h5 41. Nxf6+ Kf7 42. Rd6 $15) 40. Nxh6+ {[%emt 0:00:00]} Kg6 {[%emt 0:00:00]} 41. Ng4 {[%emt 0:00:02]} e5 {[%emt 0:01:00]} ({Weaker is} 41... Rxb4 42. Rxe6 Nd5 43. Rd6 $11) 42. Kh2 {[%emt 0:02:24]} Rxb4 {[%emt 0:00:48]} 43. Ne3 $2 {[%emt 0:02:27]} (43. Ra1 {was worth a try.}) 43... Rh4+ {[%emt 0:03:11]} 44. Kg3 {[%emt 0:00:37]} Ra4 {[%emt 0:00:01]} 45. Rh1 {[%emt 0:00:01]} Rxa5 {[%emt 0:01:04]} 46. Rh8 {[%emt 0:00:05]} Ra4 {[%emt 0:02:09]} 47. Rg8+ {[%emt 0:00:11]} Kf7 {[%emt 0:00:23]} 48. Rc8 {[%emt 0:00:07]} Nb5 {[%emt 0:01:51]} 49. Kf2 {[%emt 0:01:30]} Rb4 {[%emt 0:00:40]} 50. Nf5 {[%emt 0:00:30]} (50. Ke1 $142) 50... a5 $19 {[%emt 0:01:19]} 51. Rb8 {[%emt 0:00:35]} Nd4 {[%emt 0:01:45]} 52. Nd6+ {[%emt 0:00:31]} Ke7 {[%emt 0:00:44]} 53. Nxb7 {[%emt 0:01:59]} Rb2+ {[%emt 0:01:49]} 54. Kg3 {[%emt 0:00:11]} Nf5+ {[%emt 0:00:16]} 55. Kh3 {[%emt 0:00:09][%cal Ob7a5]} Nd6 $2 {[%emt 0:00:18]} (55... a4 $19 {Strongly threatening ...Rb4.} 56. Rh8 Rb1) 56. Nxa5 $11 {[%emt 0:00:07] The position is equal.} Rxb8 {[%emt 0:05:37]} 57. Nc6+ {[%emt 0:00:01]} Ke6 {[%emt 0:00:54] ( -> ...Rb6)} 58. Nxb8 {[%emt 0:00:05] KN-KN} Kf5 {[%emt 0:00:07]} 59. Nc6 {[%emt 0:00:10]} Kg5 {[%emt 0:00:20]} 60. g3 {[%emt 0:00:24]} e4 {[%emt 0:00:51]} 61. f4+ {[%emt 0:00:38]} Kg6 {[%emt 0:01:09]} 62. g4 {[%emt 0:00:00]} Kf7 {[%emt 0:00:51]} 63. f5 {[%emt 0:00:12]} Kg7 {[%emt 0:00:26]} 64. Kg3 {[%emt 0:03:44]} Kh6 {[%emt 0:00:27]} 65. Nd4 {[%emt 0:00:12]} e3 {[%emt 0:00:36]} ({Don't take} 65... Kg5 66. Ne6+ Kh6 67. Kf4 $16) 66. Nc2 {[%emt 0:02:06]} Nc4 {[%emt 0:00:37]} 67. Kf3 {[%emt 0:00:47]} Kg5 {[%emt 0:00:26]} 68. Nb4 {[%emt 0:00:33]} Ne5+ {[%emt 0:00:29]} 69. Kxe3 {[%emt 0:00:02]} Nxg4+ {[%emt 0:00:08]} 70. Ke2 {[%emt 0:00:04]} Kxf5 {[%emt 0:00:04]} 71. Nd5 {[%emt 0:00:03]} Ke5 {[%emt 0:00:50] Black had all chances to win.  Weighted Error Value: White=0.25 (precise) /Black=0.25 (precise)} 1/2-1/2

[Event "2nd Serbia Open Masters 2022"]
[Site "Novi Sad"]
[Date "2022.06.30"]
[Round "3.15"]
[White "Urazayev, Arystanbek"]
[Black "Makridis, Dimitrios"]
[Result "1/2-1/2"]
[ECO "D37"]
[WhiteElo "2445"]
[BlackElo "2082"]
[Annotator "TA"]
[PlyCount "130"]
[EventDate "2022.06.28"]
[EventType "swiss"]
[EventCountry "SRB"]
[SourceTitle "playchess.com"]
[Source "ChessBase"]
[SourceQuality "1"]
[TimeControl "40/5400+30:900+30"]

{[%evp 9,130,12,13,0,10,0,0,-7,1,16,9,-12,-22,-29,-28,-24,-23,-18,-19,-104,-95,-94,-95,-93,-89,-97,-96,-84,-34,-34,-34,-34,-27,-31,-26,-38,-23,-27,-23,-23,-23,-23,-23,-23,-23,-31,-16,-23,0,0,0,-5,-4,-12,-4,-4,0,0,0,-11,0,0,0,0,47,10,21,0,0,0,0,0,0,0,0,0,0,0,-1,-26,0,-22,0,0,0,0,0,0,0,0,0,0,0,0,0,0,0,0,0,0,158,0,0,0,166,0,0,0,65,65,65,0,0,0,35,0,0,0,0,0,0,0,0]} 1. d4 {[%emt 0:00:28]} d5 {[%emt 0:00:11]} 2. Nf3 {[%emt 0:00:30]} Nf6 {[%emt 1:31:19]} 3. c4 {[%emt 0:00:19]} e6 {[%emt 0:00:00]} 4. Nc3 {[%emt 0:00:18]} h6 {[%emt 0:00:00]} 5. a3 {[%emt 0:00:35]} c6 {[%emt 0:00:00]} 6. e3 {[%emt 0:00:53] D37: Queen's Gambit Declined: 5 Bf4.} Bd6 {[%emt 0:00:00]} 7. Qc2 {[%emt 1:30:57]} Nbd7 {[%emt 0:00:00]} 8. Bd3 {[%emt 0:00:00]} Qe7 {[%emt 0:00:00] [#]} 9. c5 $146 {[%emt 0:00:00]} ({Predecessor:} 9. O-O O-O 10. Re1 dxc4 11. Bxc4 e5 12. dxe5 Nxe5 13. Nxe5 Bxe5 14. f4 Bxf4 {0-1 (14) Raessler,A (1931)-Emmrich,O (1896) Mecklenburg VP 2018}) 9... Bc7 {[%emt 0:00:00]} 10. e4 {[%emt 0:00:00]} dxe4 {[%emt 0:00:00]} 11. Nxe4 {[%emt 0:00:00]} Nxe4 {[%emt 0:00:00]} 12. Bxe4 {[%emt 0:00:00]} f5 {[%emt 0:00:00]} 13. Bd3 {[%emt 0:00:00]} e5 {[%emt 0:00:00][%cal Be6e5,Be5e4][%mdl 32]} 14. Bc4 {[%emt 0:00:00]} (14. dxe5 $11 Nxe5 15. Nxe5 Qxe5+ 16. Kf1) 14... e4 {[%emt 0:00:00]} 15. Ng1 {[%emt 0:00:00]} Nf6 {[%emt 0:00:00]} 16. Ne2 {[%emt 0:00:00] Against f4} Be6 {[%emt 0:00:00]} 17. Nf4 {[%emt 0:00:00]} Bxc4 {[%emt 0:00:00]} 18. Qxc4 {[%emt 0:00:00]} Bxf4 {[%emt 0:00:00]} (18... Rh7 $17 19. Ne6 Nd5 20. Nxc7+ Qxc7) 19. Bxf4 $15 {[%emt 0:00:00]} Qf7 {[%emt 0:00:00]} 20. Qc2 {[%emt 0:00:00]} O-O {[%emt 0:00:00]} 21. O-O {[%emt 0:00:00]} Nd5 {[%emt 0:00:00]} 22. Be5 {[%emt 0:00:00]} Qg6 {[%emt 0:00:00]} 23. Rae1 {[%emt 0:00:00]} Rae8 {[%emt 0:00:00]} 24. f3 {[%emt 0:00:00][%cal Rf3e4]} e3 {[%emt 0:00:00]} 25. f4 {[%emt 0:00:00]} Rf7 {[%emt 0:00:00]} 26. Rf3 {[%emt 0:00:00]} Qe6 {[%emt 0:00:00]} 27. h3 {[%emt 0:00:00]} Qg6 {[%emt 0:00:00]} 28. Kh2 {[%emt 0:00:00]} Qh5 {[%emt 0:00:00]} 29. Qe2 {[%emt 0:00:00]} Qh4 {[%emt 0:00:54]} 30. Ref1 {[%emt 0:00:00]} Kh7 {[%emt 0:01:34]} 31. b4 {[%emt 0:00:00]} a6 {[%emt 0:00:44]} 32. Qd3 {[%emt 0:00:00]} Kg8 {[%emt 0:02:31]} 33. Rg3 {[%emt 0:00:00]} Qh5 {[%emt 0:01:05]} 34. Re1 {[%emt 0:00:00]} Qh4 {[%emt 0:00:39]} 35. Rexe3 {[%emt 0:00:18]} Nxe3 {[%emt 0:00:35]} 36. Qxe3 {[%emt 0:00:04]} g5 {[%emt 0:02:50]} (36... Qe7 $11) 37. Kg1 {[%emt 0:05:34]} (37. fxg5 $2 f4 38. g6 fxe3 $19) 37... Re6 {[%emt 0:02:09]} 38. Qb3 {[%emt 0:03:19]} (38. fxg5 $2 f4 39. g6 fxe3 $19) 38... Rxe5 {[%emt 0:01:40]} 39. dxe5 {[%emt 0:01:35]} (39. fxe5 Qxd4+ 40. Kf1 Qa1+ 41. Kf2 Qd4+ 42. Kf1 Qa1+ 43. Kf2 Qxe5 $15) 39... Qxf4 $11 {[%emt 0:00:07][%mdl 4096] Endgame KQR-KQR} 40. e6 {[%emt 0:00:00]} Re7 {[%emt 0:00:00]} 41. Re3 {[%emt 0:12:52]} Qd4 {[%emt 0:01:42] [#] White must now prevent ...f4.} 42. Kh1 {[%emt 0:00:11]} Kg7 {[%emt 0:00:56]} 43. Re1 {[%emt 0:00:40]} Kf6 {[%emt 0:08:28]} 44. Qa2 {[%emt 0:00:09] Against Qd2} h5 {[%emt 0:02:05]} 45. Qb3 {[%emt 0:03:47]} h4 {[%emt 0:03:34]} 46. Qa2 {[%emt 0:00:38] Against Qd2} Qc3 {[%emt 0:01:36]} 47. Qe2 {[%emt 0:00:20]} Qg3 {[%emt 0:01:40]} 48. Qd2 {[%emt 0:01:20]} Kg6 {[%emt 0:01:13]} (48... Rxe6 {leads to mate.} 49. Qd8+ Kg7 50. Rxe6) 49. a4 {[%emt 0:01:44]} Kf6 {[%emt 0:01:17]} 50. Qd4+ {[%emt 0:00:19]} Kg6 {[%emt 0:00:03]} 51. Qd2 {[%emt 0:01:37]} Kf6 {[%emt 0:00:19]} 52. Re3 {[%emt 0:00:36]} Qf4 {[%emt 0:00:14] Inhibits Qd4+.} 53. Kg1 {[%emt 0:00:29]} Kg6 {[%emt 0:00:38]} (53... Rxe6 $2 54. Qd8+ Kf7 55. Qd7+ Kf8 56. Qxe6 $18) 54. Qc3 {[%emt 0:00:21]} Kh7 $2 {[%emt 0:01:26]} ({Black should play} 54... a5 $11) 55. Re2 $2 {[%emt 0:00:29] White is more active.} (55. Rf3 $16 Qe4 56. Qf6 Rxe6 57. Qxg5) 55... Kg6 {[%emt 0:00:14]} 56. Re3 $2 {[%emt 0:01:19]} (56. Qh8 $11) 56... Kh7 $18 {[%emt 0:00:09]} 57. Rd3 $2 {[%emt 0:01:17]} (57. Rf3 $18 Qe4 58. Qf6 Rxe6 59. Qxg5) 57... Qe4 $11 {[%emt 0:01:36]} 58. Rd8 {[%emt 0:00:23] [#] Intending Qh8+ and mate.} f4 {[%emt 0:00:26]} (58... Qxe6 $2 59. Qh8+ Kg6 60. Rd6 $18) (58... Rg7 $11) 59. Qh8+ $14 {[%emt 0:00:34]} Kg6 {[%emt 0:00:01]} 60. Qg8+ {[%emt 0:00:58]} Kh5 {[%emt 0:00:28]} 61. Qh8+ {[%emt 0:00:23]} Kg6 {[%emt 0:00:30]} 62. Qg8+ {[%emt 0:00:36]} Kh5 {[%emt 0:00:05] The position is equal.} 63. Kh2 {[%emt 0:00:16] Threatens to win with Qh8+.} Qe5 {[%emt 0:00:57] ( -> ...f3+)} ({But not} 63... Qxe6 64. Qh8+ Qh6 65. Qc3 $16) 64. Kh1 {[%emt 0:00:42]} Qe1+ {[%emt 0:00:33]} 65. Kh2 {[%emt 0:00:02]} Qg3+ {[%emt 0:00:21] Weighted Error Value: White=0.13 (very precise) /Black=0.10 (very precise)} ({Resist} 65... Qxe6 66. Qh8+ Qh6 67. Qc3 $18) 1/2-1/2